bitfinex-derivatives/quotes_BTCF0:USTF0_20250509
["timestamp","ask_amount","ask_price","bid_price","bid_amount"]
[1746786948494,0.2665699,103170.0,103160.0,0.92983349]
[1746786948694,0.2665699,103170.0,103160.0,1.08983349]
[1746786948898,0.2665699,103170.0,103160.0,1.00410334]
[1746786949096,0.2665699,103170.0,103160.0,1.36410334]
[1746786949291,0.2665699,103170.0,103160.0,1.39530334]
[1746786952807,0.2665699,103170.0,103160.0,0.97940334]
[1746786954006,0.2665699,103170.0,103160.0,0.76940334]
[1746786954500,0.4604537,103170.0,103160.0,0.70732334]
[1746786954705,0.4604537,103170.0,103160.0,0.58732334]
[1746786955002,0.4604537,103170.0,103160.0,0.49512334]
[1746786955207,0.94172589,103170.0,103160.0,0.49512334]
[1746786955408,0.94172589,103170.0,103160.0,0.30122074]
[1746786955594,1.20865789,103170.0,103160.0,0.11122074]
[1746786955799,0.1939214,103150.0,103140.0,0.30051468]
[1746786956098,0.47439359,103150.0,103140.0,0.51899938]
[1746786956299,0.2564,103150.0,103140.0,0.50938]
[1746786956608,0.2564,103150.0,103140.0,0.63921209]
[1746786956609,0.4503214,103150.0,103140.0,0.63921209]
[1746786956802,0.4503214,103150.0,103140.0,0.50348095]
[1746786957197,0.4503214,103150.0,103140.0,0.30955065]
[1746786957705,0.4503214,103150.0,103140.0,0.50349085]
[1746786957904,0.4503214,103150.0,103140.0,0.20955065]
[1746786958106,0.4503214,103150.0,103140.0,0.22620421]
[1746786958303,0.4503214,103150.0,103140.0,0.11658565]
[1746786958493,0.93159359,103150.0,103140.0,0.11658565]
[1746786959197,0.93259359,103150.0,103140.0,0.11158565]
[1746786959394,1.0305456,103150.0,103140.0,0.11158565]
[1746786959594,1.0305456,103150.0,103140.0,0.01465356]
[1746786959907,0.1939402,103140.0,103130.0,0.00145448]
[1746786960100,0.73821239,103140.0,103130.0,0.00145448]
[1746786960303,0.95564458,103140.0,103130.0,0.09840537]
[1746786960605,0.1939778,103120.0,103110.0,0.86184]
[1746786960814,0.1939967,103110.0,103100.0,0.54012191]
[1746786961103,1.21714108,103110.0,103100.0,1e-08]
[1746786961307,0.1940155,103100.0,103090.0,0.196531]
[1746786961502,0.73588769,103100.0,103090.0,0.196531]
[1746786961808,0.83288369,103100.0,103090.0,0.2935195]
[1746786962108,0.99288369,103100.0,103090.0,0.2935195]
[1746786962305,0.99288369,103100.0,103090.0,0.004]
[1746786962607,0.99288369,103100.0,103090.0,0.01837713]
[1746786962802,0.99288369,103100.0,103090.0,0.2020343]
[1746786963002,0.89588769,103100.0,103090.0,0.2020343]
[1746786963203,0.89588769,103100.0,103090.0,0.008]
[1746786964004,0.99288369,103100.0,103090.0,0.008]
[1746786964303,0.99288369,103100.0,103090.0,0.004]
[1746786964501,0.99288369,103100.0,103090.0,0.006]
[1746786964899,0.99288369,103100.0,103090.0,0.003]
[1746786967007,0.99288369,103100.0,103090.0,0.01762465]
[1746786967901,0.1940343,103090.0,103080.0,0.0039773]
[1746786968096,0.93270649,103090.0,103080.0,0.0039773]
[1746786968302,1.0297145,103090.0,103080.0,0.0039773]
[1746786969001,1.0297145,103090.0,103080.0,0.0069773]
[1746786969200,1.0297145,103090.0,103080.0,0.0099773]
[1746786969803,0.1940908,103060.0,103050.0,0.47975343]
[1746786970003,0.1940908,103060.0,103050.0,0.81975343]
[1746786970204,0.4188908,103060.0,103050.0,0.91676075]
[1746786970402,0.4188908,103060.0,103050.0,0.61628856]
[1746786970605,0.7796908,103060.0,103050.0,0.29494136]
[1746786970810,0.4188908,103060.0,103050.0,0.48905096]
[1746786971012,0.7796908,103060.0,103050.0,0.49159537]
[1746786971311,0.4188908,103060.0,103050.0,0.64226756]
[1746786971511,0.4188908,103060.0,103050.0,0.64526756]
[1746786971903,0.3540908,103060.0,103050.0,1.20044412]
[1746786972099,0.1940908,103060.0,103050.0,1.20044412]
[1746786972311,0.1940908,103060.0,103050.0,1.20993772]
[1746786973011,0.3608,103090.0,103050.0,1.48333631]
[1746786973207,0.0633,103090.0,103080.0,0.84429188]
[1746786973507,0.4577928,103120.0,103090.0,0.0485045]
[1746786973712,0.2572967,103110.0,103100.0,0.72379079]
[1746786973917,0.2572967,103110.0,103100.0,1.05819389]
[1746786974207,0.192,103110.0,103100.0,0.91969079]
[1746786974412,0.16,103110.0,103100.0,1.6792503]
[1746786974612,0.16,103110.0,103100.0,1.7113503]
[1746786974809,0.0673,103140.0,103130.0,0.193959]
[1746786975011,0.0673,103140.0,103130.0,0.74523119]
[1746786975212,0.7820402,103140.0,103130.0,0.329859]
[1746786975520,0.7820402,103140.0,103130.0,0.4268475]
[1746786975902,0.2273,103140.0,103130.0,1.09939969]
[1746786976102,0.169,103140.0,103130.0,1.46019969]
[1746786976309,0.009,103140.0,103130.0,1.46019969]
[1746786977308,0.009,103140.0,103130.0,1.58067188]
[1746786977516,0.12292944,103160.0,103150.0,0.1939214]
[1746786977716,0.12292944,103160.0,103150.0,1.61343204]
[1746786978016,0.40994556,103170.0,103160.0,0.1939026]
[1746786978017,0.004,103170.0,103160.0,0.1939026]
[1746786978207,0.004,103170.0,103160.0,1.40630508]
[1746786978513,0.004,103170.0,103160.0,0.8064026]
[1746786978716,0.5586838,103170.0,103160.0,0.51253469]
[1746786979014,0.004,103170.0,103160.0,0.84333469]
[1746786979215,0.164,103170.0,103160.0,1.27124533]
[1746786979615,0.166,103170.0,103160.0,1.27124533]
[1746786979917,0.169,103170.0,103160.0,1.26333469]
[1746786980117,0.169,103170.0,103160.0,1.27297812]
[1746786980307,0.169,103170.0,103160.0,1.43088876]
[1746786980706,0.169,103170.0,103160.0,1.27297812]
[1746786981414,0.169,103170.0,103160.0,1.06297812]
[1746786981609,0.7236838,103170.0,103160.0,0.50063209]
[1746786981814,0.94629444,103170.0,103160.0,0.32863209]
[1746786982608,0.94629444,103170.0,103160.0,0.52253469]
[1746786983010,0.94629444,103170.0,103160.0,0.32863209]
[1746786983209,0.94629444,103170.0,103160.0,0.09693209]
[1746786983418,0.1939026,103160.0,103150.0,0.7110197]
[1746786983614,0.1939026,103160.0,103150.0,0.6667197]
[1746786983915,0.0308,103160.0,103150.0,0.76365179]
[1746786984119,0.7416192,103170.0,103160.0,0.1939026]
[1746786984318,0.7724192,103170.0,103160.0,0.2739026]
[1746786984705,0.7704192,103170.0,103160.0,0.37083469]
[1746786985018,0.7674192,103170.0,103160.0,0.37083469]
[1746786985219,0.1939402,103140.0,103130.0,0.00145447]
[1746786985519,0.1939402,103140.0,103090.0,0.91106663]
[1746786985520,0.1940155,103100.0,103090.0,0.91106663]
[1746786985720,0.1940155,103100.0,103090.0,0.30269013]
[1746786985915,0.35192614,103100.0,103090.0,0.196531]
[1746786986116,0.57412614,103100.0,103090.0,0.29349129]
[1746786986619,0.93492614,103100.0,103090.0,0.196531]
[1746786986819,0.93492614,103100.0,103090.0,0.29352891]
[1746786987614,0.93492614,103100.0,103090.0,0.30152891]
[1746786988213,0.93492614,103100.0,103090.0,0.29952891]
[1746786988424,1.03192214,103100.0,103090.0,0.202531]
[1746786988720,0.1940343,103090.0,103080.0,1.11128105]
[1746786988919,0.77754494,103090.0,103080.0,0.13261515]
[1746786989114,1.03455295,103090.0,103080.0,0.09024725]
[1746786990124,1.03455295,103090.0,103080.0,0.03557375]
[1746786990419,1.03455295,103090.0,103080.0,5e-08]
[1746786991121,0.1940531,103080.0,103070.0,0.29479651]
[1746786991323,0.77846374,103080.0,103070.0,0.29479651]
[1746786991710,0.77846374,103080.0,103070.0,0.21907201]
[1746786992126,0.93846374,103080.0,103070.0,0.21907201]
[1746786992512,0.93846374,103080.0,103070.0,0.22207201]
[1746786992713,0.94573374,103080.0,103070.0,0.22207201]
[1746786993424,0.94573374,103080.0,103070.0,0.003]
[1746786993820,0.7878231,103080.0,103070.0,0.003]
[1746786994020,0.94573374,103080.0,103070.0,0.006]
[1746787002127,0.1940908,103060.0,103050.0,0.00397845]
[1746787002327,1.07360144,103060.0,103050.0,0.00397845]
[1746787002528,1.13770144,103060.0,103050.0,0.10099518]
[1746787002723,1.13770144,103060.0,103050.0,0.13169518]
[1746787003126,1.29770144,103060.0,103050.0,0.13169518]
[1746787003418,1.29770144,103060.0,103050.0,0.04067845]
[1746787003932,1.29770144,103060.0,103050.0,0.03967845]
[1746787004136,1.29770144,103060.0,103050.0,0.04167845]
[1746787004325,1.29770144,103060.0,103050.0,0.03867845]
[1746787006333,1.29770144,103060.0,103050.0,0.00797845]
[1746787009535,1.29770144,103060.0,103050.0,0.20208805]
[1746787009536,1.1397908,103060.0,103050.0,0.20208805]
[1746787009736,1.0756908,103060.0,103050.0,0.36262361]
[1746787010041,0.3540908,103060.0,103050.0,0.91193425]
[1746787010232,0.1940908,103060.0,103050.0,0.91193425]
[1746787010433,0.70045,103070.0,103060.0,0.1940908]
[1746787010731,0.70045,103070.0,103060.0,0.2575908]
[1746787011039,0.5548872,103070.0,103060.0,0.35462636]
[1746787012128,0.2013314,103080.0,103070.0,0.1940719]
[1746787012338,0.2013314,103080.0,103070.0,0.6200719]
[1746787012835,0.2013314,103080.0,103070.0,0.71708863]
[1746787013238,0.3613314,103080.0,103070.0,0.71708863]
[1746787013440,0.3623314,103080.0,103070.0,0.71708863]
[1746787013642,0.3643314,103080.0,103070.0,0.71708863]
[1746787013832,0.3643231,103080.0,103070.0,2.21708863]
[1746787014034,0.17027,103080.0,103070.0,2.37499927]
[1746787014331,0.05382465,103090.0,103080.0,0.1940531]
[1746787014536,0.04994188,103090.0,103080.0,1.02819438]
[1746787014736,0.12292944,103100.0,103090.0,0.1940343]
[1746787014941,0.12292944,103100.0,103090.0,0.74504494]
[1746787015241,0.1940129,103110.0,103100.0,0.1940155]
[1746787015432,0.1940129,103110.0,103100.0,0.5849155]
[1746787015631,0.1940129,103110.0,103100.0,0.74282614]
[1746787016147,0.46241364,103120.0,103100.0,0.7789079]
[1746787016330,0.41391574,103120.0,103110.0,0.3909]
[1746787016531,0.41391574,103120.0,103110.0,0.40536195]
[1746787016940,0.41391574,103120.0,103110.0,0.50234105]
[1746787017241,0.57391574,103120.0,103110.0,0.69633775]
[1746787017744,0.57391574,103120.0,103110.0,0.50234105]
[1746787017745,0.57591574,103120.0,103110.0,0.50234105]
[1746787018040,0.57791574,103120.0,103110.0,0.53254105]
[1746787018246,0.64331574,103120.0,103110.0,0.53254105]
[1746787018634,0.28692944,103120.0,103110.0,0.18135593]
[1746787018838,0.28692944,103120.0,103110.0,0.98594327]
[1746787019030,0.164,103120.0,103110.0,1.08292327]
[1746787019235,0.004,103120.0,103110.0,1.49882327]
[1746787019439,0.004,103120.0,103110.0,1.59091263]
[1746787019641,0.00727,103130.0,103120.0,0.1939778]
[1746787019930,0.00727,103130.0,103120.0,0.6899578]
[1746787020136,0.201229,103130.0,103120.0,0.6899578]
[1746787020342,0.201229,103130.0,103120.0,2.2869369]
[1746787020538,0.00727,103130.0,103120.0,2.2869369]
[1746787020934,0.204229,103130.0,103120.0,2.2869369]
[1746787021131,0.207229,103130.0,103120.0,2.2869369]
[1746787021333,0.01327,103130.0,103120.0,2.2869369]
[1746787021548,0.207229,103130.0,103120.0,2.2869369]
[1746787021848,0.01327,103130.0,103120.0,2.2740369]
[1746787022144,0.367229,103130.0,103120.0,1.9881791]
[1746787022345,0.367229,103130.0,103120.0,0.2192191]
[1746787022538,0.58863964,103130.0,103120.0,0.1273791]
[1746787022746,0.94943964,103130.0,103120.0,0.0969791]
[1746787023046,0.17327,103130.0,103120.0,0.2909569]
[1746787023348,0.17327,103130.0,103120.0,0.87496754]
[1746787023349,0.367229,103130.0,103120.0,0.87496754]
[1746787023545,0.367229,103130.0,103120.0,0.5230791]
[1746787023751,1.24673964,103130.0,103120.0,0.0969791]
[1746787024047,0.94943964,103130.0,103120.0,0.0969791]
[1746787024444,0.1939778,103120.0,103110.0,0.01446195]
[1746787024643,0.1939967,103110.0,103100.0,0.0631]
[1746787024848,0.2562967,103110.0,103100.0,0.2571155]
[1746787025247,0.4162967,103110.0,103100.0,0.35408519]
[1746787025446,0.4162967,103110.0,103100.0,0.09696969]
[1746787025751,0.93500734,103110.0,103100.0,0.29098519]
[1746787025944,0.7770967,103110.0,103100.0,0.32248519]
[1746787026137,0.5831,103110.0,103100.0,0.35408519]
[1746787026341,0.16,103110.0,103100.0,0.71488519]
[1746787026543,0.16,103110.0,103100.0,0.87279583]
[1746787026736,0.16,103110.0,103100.0,0.87379583]
[1746787027152,0.16,103110.0,103100.0,0.88849184]
[1746787027349,0.51190734,103110.0,103100.0,0.2686057]
[1746787027650,0.93620734,103110.0,103100.0,0.3076812]
[1746787027845,0.4174967,103110.0,103100.0,0.3076812]
[1746787028050,0.4174967,103110.0,103100.0,0.3718812]
[1746787028448,0.7782967,103110.0,103100.0,0.3718812]
[1746787028950,0.7782967,103110.0,103100.0,0.3708812]
[1746787029155,0.4194967,103110.0,103100.0,0.3708812]
[1746787029653,0.4194967,103110.0,103100.0,0.3698812]
[1746787030140,0.4194967,103110.0,103100.0,0.7306812]
[1746787030345,0.4214967,103110.0,103100.0,0.3698812]
[1746787031249,0.4214967,103110.0,103100.0,0.7306812]
[1746787031440,0.4214967,103110.0,103100.0,0.3698812]
[1746787031947,0.4214967,103110.0,103100.0,0.7306812]
[1746787032151,0.2275,103110.0,103100.0,0.7306812]
[1746787032347,0.164,103110.0,103100.0,0.7306812]
[1746787032548,0.164,103110.0,103100.0,0.88859184]
[1746787033449,0.164,103110.0,103100.0,0.7306812]
[1746787033648,0.162,103110.0,103100.0,0.88959184]
[1746787033851,0.3559967,103110.0,103100.0,0.1768657]
[1746787034057,0.54610734,103110.0,103100.0,0.1455657]
[1746787034352,0.4167967,103110.0,103100.0,0.3066812]
[1746787034657,0.4167967,103110.0,103100.0,0.3710812]
[1746787034860,0.4167967,103110.0,103100.0,0.3076812]
[1746787035156,0.4167967,103110.0,103100.0,0.3066812]
[1746787035548,0.4167967,103110.0,103100.0,0.6674812]
[1746787035749,0.4167967,103110.0,103100.0,0.7308812]
[1746787035951,0.2248,103110.0,103100.0,0.7298812]
[1746787036147,0.162,103110.0,103100.0,0.88779184]
[1746787036558,0.164,103110.0,103100.0,0.88779184]
[1746787037253,0.002,103110.0,103100.0,0.88879184]
[1746787038260,0.0301,103120.0,103110.0,0.1939967]
[1746787038457,0.0301,103120.0,103110.0,0.6174967]
[1746787038848,0.0301,103120.0,103110.0,2.2144758]
[1746787039046,0.0301,103120.0,103110.0,2.37238644]
[1746787040165,0.1901,103120.0,103110.0,2.37238644]
[1746787040662,0.1901,103120.0,103110.0,2.46422644]
[1746787041262,0.1901,103120.0,103110.0,2.3063158]
[1746787042760,0.2525,103120.0,103110.0,2.3063158]
[1746787043351,0.1901,103120.0,103110.0,2.3063158]
[1746787044157,0.2535,103120.0,103110.0,2.3063158]
[1746787044368,0.2227,103120.0,103110.0,2.3063158]
[1746787044559,0.1901,103120.0,103110.0,2.3063158]
[1746787045752,0.4166778,103120.0,103110.0,2.2144758]
[1746787045957,0.4470778,103120.0,103110.0,1.9455158]
[1746787046361,0.4470778,103120.0,103110.0,0.4455158]
[1746787046864,0.4470778,103120.0,103110.0,0.8063158]
[1746787047258,0.2531,103120.0,103110.0,0.8063158]
[1746787048164,0.4470778,103120.0,103110.0,0.8063158]
[1746787048566,0.4470778,103120.0,103110.0,0.7144758]
[1746787048766,0.4470778,103120.0,103110.0,0.7436158]
[1746787048965,0.4470778,103120.0,103110.0,0.7758158]
[1746787049166,0.4470778,103120.0,103110.0,0.8063158]
[1746787049560,0.2531,103120.0,103110.0,0.8063158]
[1746787050266,0.4470778,103120.0,103110.0,0.8063158]
[1746787050467,0.2531,103120.0,103110.0,0.8063158]
[1746787050879,0.4470778,103120.0,103110.0,0.8063158]
[1746787051371,0.4470778,103120.0,103110.0,0.4455158]
[1746787051670,0.4470778,103120.0,103110.0,0.8063158]
[1746787051970,0.2531,103120.0,103110.0,0.8063158]
[1746787052167,0.4470778,103120.0,103110.0,0.4455158]
[1746787052355,0.4470778,103120.0,103110.0,0.8063158]
[1746787052864,0.4470778,103120.0,103110.0,0.4455158]
[1746787053068,0.2531,103120.0,103110.0,0.8063158]
[1746787053262,0.4470778,103120.0,103110.0,0.4455158]
[1746787053462,0.2531,103120.0,103110.0,0.8063158]
[1746787055069,0.4470778,103120.0,103110.0,0.7144758]
[1746787055269,0.4470778,103120.0,103110.0,0.8062758]
[1746787055972,0.2531,103120.0,103110.0,0.8062758]
[1746787056166,0.4470778,103120.0,103110.0,0.4454758]
[1746787056362,0.2531,103120.0,103110.0,0.8062758]
[1746787056568,0.2531,103120.0,103110.0,0.92673015]
[1746787057477,0.1901,103120.0,103110.0,0.92673015]
[1746787058768,0.4143778,103120.0,103110.0,0.4454758]
[1746787058970,0.4459778,103120.0,103110.0,0.8062758]
[1746787059580,0.252,103120.0,103110.0,0.81358487]
[1746787059770,0.252,103120.0,103110.0,0.93403922]
[1746787060167,0.1901,103120.0,103110.0,0.93403922]
[1746787061072,0.0301,103120.0,103110.0,0.93403922]
[1746787061578,0.0812121,103130.0,103120.0,0.1939778]
[1746787061768,0.0812121,103130.0,103120.0,0.71564122]
[1746787061967,0.0812121,103130.0,103120.0,2.24594122]
[1746787062176,0.0812121,103130.0,103120.0,2.34292032]
[1746787062965,0.0832121,103130.0,103120.0,2.34292032]
[1746787063470,0.00927,103130.0,103120.0,2.34292032]
[1746787063666,0.01127,103130.0,103120.0,2.22246597]
[1746787063976,0.01127,103130.0,103120.0,2.34292032]
[1746787064375,0.01127,103130.0,103120.0,2.22246597]
[1746787064674,0.01127,103130.0,103120.0,2.34292032]
[1746787065379,0.20157,103130.0,103120.0,2.34292032]
[1746787065982,0.23157,103130.0,103120.0,2.34292032]
[1746787066177,0.07157,103130.0,103120.0,2.34292032]
[1746787066881,0.07157,103130.0,103120.0,2.22246597]
[1746787067180,0.23157,103130.0,103120.0,2.34292032]
[1746787067580,0.23157,103130.0,103120.0,2.3433561]
[1746787067973,0.2243,103130.0,103120.0,2.3433561]
[1746787069880,0.1943,103130.0,103120.0,2.3433561]
[1746787071277,0.1943,103130.0,103120.0,2.3435061]
[1746787071468,0.12692944,103170.0,103120.0,1.63285065]
[1746787071669,0.22202944,103170.0,103160.0,1.03595695]
[1746787071874,0.22202944,103170.0,103160.0,2.6356118]
[1746787072073,0.18962944,103170.0,103160.0,2.6988118]
[1746787072273,0.18962944,103170.0,103160.0,2.95576269]
[1746787072576,0.13592944,103170.0,103160.0,2.9705368]
[1746787072975,0.13592944,103170.0,103160.0,2.98001802]
[1746787073185,0.30318944,103170.0,103160.0,2.82001802]
[1746787073671,0.12355104,103170.0,103160.0,3.04201542]
[1746787073875,0.05337915,103200.0,103190.0,0.1938463]
[1746787074181,0.01836245,103200.0,103190.0,1.2955555]
[1746787074375,5e-08,103200.0,103190.0,1.4251595]
[1746787074572,5e-08,103200.0,103190.0,2.95768759]
[1746787074978,5e-08,103200.0,103190.0,2.86592759]
[1746787075178,0.17269735,103210.0,103190.0,2.82115964]
[1746787075386,0.17265735,103210.0,103200.0,0.7955362]
[1746787075582,0.1973684,103220.0,103210.0,0.1938087]
[1746787075777,0.1008,103230.0,103220.0,0.1937899]
[1746787075983,0.1008,103230.0,103220.0,0.71968679]
[1746787076286,0.2608,103230.0,103220.0,0.71968679]
[1746787076589,0.2608,103230.0,103220.0,0.81657193]
[1746787077287,0.2275,103230.0,103220.0,0.81757193]
[1746787077581,0.2605,103230.0,103220.0,0.93802628]
[1746787077775,0.2605,103230.0,103220.0,0.81757193]
[1746787077979,0.2605,103230.0,103220.0,0.84170806]
[1746787078183,0.2605,103230.0,103220.0,0.84570806]
[1746787078882,0.2605,103230.0,103220.0,0.83769647]
[1746787079082,0.2605,103230.0,103220.0,0.84570096]
[1746787079280,0.97280524,103230.0,103220.0,0.11639611]
[1746787079584,0.97280524,103230.0,103220.0,0.06649611]
[1746787079788,0.8150711,103230.0,103220.0,0.06649611]
[1746787079975,0.97280524,103230.0,103220.0,0.26028601]
[1746787080178,0.2605,103230.0,103220.0,0.26028601]
[1746787080377,0.97280524,103230.0,103220.0,0.21330087]
[1746787080576,0.8150711,103230.0,103220.0,0.31017662]
[1746787080776,0.6213,103230.0,103220.0,0.31017662]
[1746787080984,0.8150711,103230.0,103220.0,0.31017662]
[1746787081285,0.6213,103230.0,103220.0,0.31017662]
[1746787081491,0.8150711,103230.0,103220.0,0.31017662]
[1746787082591,0.8150711,103230.0,103220.0,0.31846928]
[1746787082888,0.4542711,103230.0,103220.0,0.31846928]
[1746787083190,0.2605,103230.0,103220.0,0.67926928]
[1746787083685,0.4542711,103230.0,103220.0,0.31846928]
[1746787083880,0.97280524,103230.0,103220.0,0.12514416]
[1746787084083,0.97280524,103230.0,103220.0,0.12514473]
[1746787084287,0.8150711,103230.0,103220.0,0.12514473]
[1746787084478,0.97280524,103230.0,103220.0,0.12514473]
[1746787084679,0.8150711,103230.0,103220.0,0.31893463]
[1746787084880,0.8150711,103230.0,103220.0,0.31017662]
[1746787084881,0.97280524,103230.0,103220.0,0.31017662]
[1746787086290,0.97280524,103230.0,103220.0,0.11638672]
[1746787086495,0.97280524,103230.0,103220.0,0.01951097]
[1746787086689,0.97280524,103230.0,103220.0,0.21330087]
[1746787086988,0.97380524,103230.0,103220.0,0.21230087]
[1746787087191,0.97380524,103230.0,103220.0,0.21207217]
[1746787087784,0.97380524,103230.0,103220.0,0.01428227]
[1746787087984,0.97380524,103230.0,103220.0,0.1937899]
[1746787088490,0.1937899,103220.0,103210.0,0.4308223]
[1746787088693,0.6170899,103220.0,103210.0,0.4308223]
[1746787088990,0.6170899,103220.0,103210.0,0.52769805]
[1746787089287,0.4162899,103220.0,103210.0,0.52769805]
[1746787089479,0.7770899,103220.0,103210.0,0.52769805]
[1746787089683,0.7770899,103220.0,103210.0,0.52869805]
[1746787089891,0.4162899,103220.0,103210.0,0.52869805]
[1746787090093,0.4162899,103220.0,103210.0,0.53685245]
[1746787090287,0.7770899,103220.0,103210.0,0.53685245]
[1746787090487,0.7770899,103220.0,103210.0,0.52869805]
[1746787091589,0.7770899,103220.0,103210.0,0.52969805]
[1746787091793,0.7770899,103220.0,103210.0,0.53785879]
[1746787092698,0.7770899,103220.0,103210.0,0.48940719]
[1746787092887,0.7770899,103220.0,103210.0,0.43279535]
[1746787093595,0.7770899,103220.0,103210.0,0.38434565]
[1746787095801,0.7770899,103220.0,103210.0,0.29266565]
[1746787096901,0.7770899,103220.0,103210.0,0.30026083]
[1746787097291,0.93482404,103220.0,103210.0,0.09887575]
[1746787097492,0.57402404,103220.0,103210.0,0.002]
[1746787097787,0.93482404,103220.0,103210.0,0.002]
[1746787098197,0.93482404,103220.0,103210.0,0.1958087]
[1746787098392,0.7770899,103220.0,103210.0,0.1958087]
[1746787098798,0.7780899,103220.0,103210.0,0.1948087]
[1746787099102,0.7780899,103220.0,103210.0,0.29833816]
[1746787099400,0.93582404,103220.0,103210.0,0.29833816]
[1746787099805,0.89834146,103220.0,103210.0,0.29833816]
[1746787100199,0.7780899,103220.0,103210.0,0.29833816]
[1746787100386,0.7780899,103220.0,103210.0,0.36313677]
[1746787101600,0.7770899,103220.0,103210.0,0.36513677]
[1746787102203,0.7770899,103220.0,103210.0,0.36555387]
[1746787102903,0.7770899,103220.0,103210.0,0.36555816]
[1746787103913,0.7770899,103220.0,103210.0,0.10704946]
[1746787103914,0.89734146,103220.0,103210.0,0.10704946]
[1746787104206,0.89734146,103220.0,103210.0,0.01016432]
[1746787105199,0.89734146,103220.0,103210.0,0.20397302]
[1746787105396,0.0956178,103220.0,103210.0,1.14270972]
[1746787105605,0.0956178,103220.0,103210.0,1.32744972]
[1746787105805,0.0956178,103220.0,103210.0,1.3192854]
[1746787106000,0.0956178,103220.0,103210.0,2.8192854]
[1746787106198,0.0379,103230.0,103220.0,0.1937899]
[1746787106400,0.0379,103230.0,103220.0,0.73794146]
[1746787106602,0.004,103230.0,103220.0,0.73794146]
[1746787106799,0.004,103230.0,103220.0,0.8348266]
[1746787106999,0.004,103230.0,103220.0,0.17478987]
[1746787107000,0.67882266,103230.0,103220.0,0.17478987]
[1746787107202,1.15115022,103230.0,103220.0,0.11168987]
[1746787107804,1.05427422,103230.0,103220.0,0.11168987]
[1746787108003,1.05427422,103230.0,103220.0,0.11268987]
[1746787108310,0.93402266,103230.0,103220.0,0.30647977]
[1746787108508,0.164,103230.0,103220.0,0.78653133]
[1746787108712,0.164,103230.0,103220.0,0.97207133]
[1746787108907,0.164,103230.0,103220.0,0.85181977]
[1746787109212,0.004,103230.0,103220.0,0.97207133]
[1746787111009,0.004,103230.0,103220.0,0.97307133]
[1746787111313,0.004,103230.0,103220.0,1.13407133]
[1746787111712,0.004,103230.0,103220.0,1.17154998]
[1746787112104,0.004,103230.0,103220.0,1.01154998]
[1746787112714,0.004,103230.0,103220.0,1.48154998]
[1746787115109,0.004,103230.0,103220.0,1.32381977]
[1746787115414,0.004,103230.0,103220.0,1.48154998]
[1746787119823,0.004,103230.0,103220.0,1.19612008]
[1746787119824,0.1977711,103230.0,103220.0,1.19612008]
[1746787120114,0.2613711,103230.0,103220.0,0.37007977]
[1746787120316,0.4213711,103230.0,103220.0,0.73087977]
[1746787122519,0.164,103230.0,103220.0,0.93860998]
[1746787122821,0.164,103230.0,103220.0,1.28860998]
[1746787123015,0.164,103230.0,103220.0,1.32010998]
[1746787123217,0.004,103230.0,103220.0,1.32010998]
[1746787123912,0.004,103230.0,103220.0,1.07010998]
[1746787124115,0.164,103230.0,103220.0,1.32010998]
[1746787124619,0.3577711,103230.0,103220.0,0.92087977]
[1746787124819,0.4212711,103230.0,103220.0,0.92087977]
[1746787125212,0.3895711,103230.0,103220.0,0.92087977]
[1746787126115,0.164,103230.0,103220.0,1.33860998]
[1746787126320,0.164,103230.0,103220.0,1.37050998]
[1746787126627,0.164,103230.0,103220.0,1.12050998]
[1746787127222,0.164,103230.0,103220.0,1.37050998]
[1746787127432,0.164,103230.0,103220.0,1.11050998]
[1746787127723,0.1971,103230.0,103220.0,1.11050998]
[1746787128424,0.164,103230.0,103220.0,1.13050998]
[1746787129925,0.164,103230.0,103220.0,1.33050998]
[1746787130421,0.1968,103230.0,103220.0,0.95277977]
[1746787130923,0.2296,103230.0,103220.0,0.95277977]
[1746787131330,0.23686,103230.0,103220.0,0.95277977]
[1746787131836,0.23686,103230.0,103220.0,1.07296163]
[1746787132532,0.25139,103230.0,103220.0,1.07296163]
[1746787133129,0.25139,103230.0,103220.0,1.32296163]
[1746787133721,0.25139,103230.0,103220.0,1.11296163]
[1746787135227,0.25139,103230.0,103220.0,1.28296163]
[1746787135732,0.25139,103230.0,103220.0,1.42296163]
[1746787136328,0.21859,103230.0,103220.0,1.42296163]
[1746787137131,0.05859,103230.0,103220.0,1.42296163]
[1746787138736,0.02579,103230.0,103220.0,1.42296163]
[1746787139332,0.05669,103230.0,103220.0,1.42296163]
[1746787139532,0.08819,103230.0,103220.0,1.30277977]
[1746787139729,0.08819,103230.0,103220.0,1.30106163]
[1746787141336,0.24819,103230.0,103220.0,1.30106163]
[1746787141837,0.21669,103230.0,103220.0,1.30106163]
[1746787142835,0.18579,103230.0,103220.0,1.30106163]
[1746787143230,0.02579,103230.0,103220.0,1.30106163]
[1746787144341,0.05749,103230.0,103220.0,1.30106163]
[1746787144528,0.08859,103230.0,103220.0,1.30106163]
[1746787145027,0.02579,103230.0,103220.0,1.30106163]
[1746787145230,0.18579,103230.0,103220.0,1.30106163]
[1746787146734,0.02374243,103240.0,103230.0,0.1937711]
[1746787146934,0.02374243,103240.0,103230.0,1.51965482]
[1746787147233,0.15955144,103250.0,103240.0,0.1937524]
[1746787147431,0.19065144,103250.0,103240.0,0.76534502]
[1746787147633,0.19065144,103250.0,103240.0,0.95534502]
[1746787147834,0.19065144,103250.0,103240.0,1.04686502]
[1746787148035,0.19065144,103250.0,103240.0,1.15367421]
[1746787148235,0.35065144,103250.0,103240.0,1.1536337]
[1746787148434,0.35065144,103250.0,103240.0,1.1336337]
[1746787148638,0.35065144,103250.0,103240.0,1.3246337]
[1746787149438,0.35065144,103250.0,103240.0,1.3256337]
[1746787150042,0.35065144,103250.0,103240.0,1.4856337]
[1746787151740,0.2527,103250.0,103240.0,1.1356337]
[1746787152147,0.2527,103250.0,103240.0,1.5356337]
[1746787152334,0.2527,103250.0,103240.0,1.3156337]
[1746787152535,0.2527,103250.0,103240.0,1.1256337]
[1746787152836,0.2527,103250.0,103240.0,3.0256337]
[1746787153232,0.2527,103250.0,103240.0,3.02601995]
[1746787153739,0.2527,103250.0,103240.0,2.71601995]
[1746787154136,0.2527,103250.0,103240.0,2.80601995]
[1746787154737,0.4464336,103250.0,103240.0,2.80601995]
[1746787155033,0.2527,103250.0,103240.0,2.70601995]
[1746787155241,0.2527,103250.0,103240.0,2.71601995]
[1746787156238,0.4464336,103250.0,103240.0,0.67503809]
[1746787156432,0.4464336,103250.0,103240.0,0.32656569]
[1746787156636,0.56661546,103250.0,103240.0,0.10662287]
[1746787156838,0.56661546,103250.0,103240.0,0.30037527]
[1746787157242,0.4464336,103250.0,103240.0,0.30037527]
[1746787157743,0.4464336,103250.0,103240.0,0.30042977]
[1746787158535,0.56661546,103250.0,103240.0,0.30042977]